fUST/lending_fUST_20250522
["ID","MTS","AMOUNT","RATE_DAILY","PERIOD"]
[361941133,1747902643517,-566.95,0.00022191,2]
[361941135,1747902643528,-430.0,0.00022191,2]
[361941137,1747902643539,-430.0,0.00022191,2]
[361941139,1747902643549,-430.0,0.00022191,2]
[361941141,1747902643560,-430.0,0.00022191,2]
[361941143,1747902643572,-430.0,0.00022191,2]
[361941145,1747902643583,-430.0,0.00022191,2]
[361941147,1747902643595,-430.0,0.00022191,2]
[361941149,1747902643606,-430.0,0.00022191,2]
[361941152,1747902643619,-996.34,0.00022191,2]
[361941154,1747902643634,-430.0,0.00022191,2]
[361941156,1747902643644,-430.0,0.00022191,2]
[361941158,1747902643654,-430.0,0.00022191,2]
[361941160,1747902643664,-430.0,0.00022191,2]
[361941162,1747902643674,-430.0,0.00022191,2]
[361941164,1747902643684,-400.0,0.00022191,2]
[361941166,1747902643695,-430.0,0.00022191,2]
[361941168,1747902643706,-430.0,0.00022191,2]
[361941170,1747902643717,-430.0,0.00022191,2]
[361941172,1747902643727,-370.87806351,0.00022191,2]
[361941174,1747902643738,-430.0,0.00022191,2]
[361941176,1747902643750,-430.0,0.00022191,2]
[361941178,1747902643761,-430.0,0.00022191,2]
[361941181,1747902643771,-430.0,0.00022191,2]
[361941183,1747902643782,-290.05494733,0.00022191,2]
[361941185,1747902643792,-430.0,0.00022191,2]
[361941187,1747902643803,-430.0,0.00022191,2]
[361941189,1747902643813,-430.0,0.00022191,2]
[361941191,1747902643823,-430.0,0.00022191,2]
[361941193,1747902643833,-430.0,0.00022191,2]
[361941195,1747902643843,-430.0,0.00022191,2]
[361941197,1747902643859,-430.0,0.00022191,2]
[361941199,1747902643869,-1893.39,0.00022191,2]
[361941201,1747902643879,-1265.55,0.00022191,2]
[361941203,1747902643890,-430.0,0.00022191,2]
[361941205,1747902643900,-390.0,0.00022191,2]
[361941207,1747902643910,-758.65,0.00022191,2]
[361941209,1747902643920,-420.0,0.00022191,2]
[361941211,1747902643930,-430.0,0.00022191,2]
[361941213,1747902643941,-400.0,0.00022191,2]
[361941215,1747902643951,-430.0,0.00022191,2]
[361941217,1747902643962,-430.0,0.00022191,2]
[361941220,1747902643972,-430.0,0.00022191,2]
[361941222,1747902643983,-475.45,0.00022191,2]
[361941224,1747902643993,-430.0,0.00022191,2]
[361941226,1747902644004,-213.49625718,0.00022191,2]
[361941228,1747902644018,-430.0,0.00022191,2]
[361941230,1747902644029,-430.0,0.00022191,2]
[361941232,1747902644039,-430.0,0.00022191,2]
[361941234,1747902644050,-430.0,0.00022191,2]
[361941236,1747902644066,-430.0,0.00022191,2]
[361941239,1747902644078,-595.54,0.00022191,2]
[361941241,1747902644090,-430.0,0.00022191,2]
[361941243,1747902644109,-755.34,0.00022191,2]
[361941245,1747902644121,-430.0,0.00022191,2]
[361941247,1747902644132,-430.0,0.00022191,2]
[361941250,1747902644146,-430.0,0.00022191,2]
[361941252,1747902644158,-430.0,0.00022191,2]
[361941254,1747902644169,-430.0,0.00022191,2]
[361941256,1747902644180,-400.0,0.00022191,2]
[361941257,1747902644192,-430.0,0.00022191,2]
[361941259,1747902644203,-430.0,0.00022191,2]
[361941261,1747902644214,-430.0,0.00022191,2]
[361941263,1747902644225,-507.22,0.00022191,2]
[361941264,1747902644236,-573.09,0.00022191,2]
[361941265,1747902644246,-430.0,0.00022191,2]
[361941267,1747902644256,-1646.86,0.00022191,2]
[361941269,1747902644266,-430.0,0.00022191,2]
[361941271,1747902644278,-430.0,0.00022191,2]
[361941272,1747902644288,-360.0,0.00022191,2]
[361941273,1747902644299,-1316.39270049,0.0002221,6]
[361941274,1747902644308,-151.0,0.00022307,2]
[361941275,1747902644319,-207.4,0.00022307,2]
[361941276,1747902644330,-1316.39270049,0.00022314,7]
[361941277,1747902644340,-405.60831688,0.00022365,2]
[361941278,1747902644355,-315.32450349,0.00022417,2]
[361941279,1747902644365,-1316.39270049,0.00022417,7]
[361941280,1747902644379,-500.0,0.00022464,2]
[361941281,1747902644389,-430.0,0.00022465,2]
[361941282,1747902644400,-430.0,0.00022465,2]
[361941283,1747902644411,-430.0,0.00022465,2]
[361941284,1747902644421,-430.0,0.00022465,2]
[361941285,1747902644432,-430.0,0.00022465,2]
[361941286,1747902644442,-430.0,0.00022465,2]
[361941287,1747902644452,-1084.93,0.00022465,2]
[361941288,1747902644462,-235.11884545,0.00022465,2]
[361941289,1747902644472,-430.0,0.00022465,2]
[361941290,1747902644482,-430.0,0.00022465,2]
[361941291,1747902644493,-430.0,0.00022465,2]
[361941292,1747902644503,-304.23633894,0.00022465,2]
[361941293,1747902644513,-430.0,0.00022465,2]
[361941294,1747902644523,-344.44,0.00022465,2]
[361941295,1747902644533,-703.18,0.00022465,2]
[361941296,1747902644543,-430.0,0.00022465,2]
[361941297,1747902644553,-1030.83,0.00022465,2]
[361941298,1747902644563,-661.71,0.00022465,2]
[361941299,1747902644573,-430.0,0.00022465,2]
[361941300,1747902644583,-430.0,0.00022465,2]
[361941301,1747902644594,-430.0,0.00022465,2]
[361941302,1747902644608,-430.0,0.00022465,2]
[361941303,1747902644618,-430.0,0.00022465,2]
[361941304,1747902644628,-608.29,0.00022465,2]
[361941305,1747902644638,-430.0,0.00022465,2]
[361941306,1747902644648,-430.0,0.00022465,2]
[361941307,1747902644659,-430.0,0.00022465,2]
[361941308,1747902644669,-566.95,0.00022465,2]
[361941309,1747902644679,-434.3,0.00022465,2]
[361941310,1747902644689,-430.0,0.00022465,2]
[361941311,1747902644699,-430.0,0.00022465,2]
[361941312,1747902644709,-430.0,0.00022465,2]
[361941313,1747902644720,-430.0,0.00022465,2]
[361941314,1747902644730,-430.0,0.00022465,2]
[361941315,1747902644739,-996.34,0.00022465,2]
[361941316,1747902644750,-430.0,0.00022465,2]
[361941317,1747902644760,-420.0,0.00022465,2]
[361941318,1747902644769,-430.0,0.00022465,2]
[361941319,1747902644779,-430.0,0.00022465,2]
[361941320,1747902644790,-430.0,0.00022465,2]
[361941321,1747902644799,-430.0,0.00022465,2]
[361941322,1747902644809,-430.0,0.00022465,2]
[361941323,1747902644819,-430.0,0.00022465,2]
[361941324,1747902644829,-430.0,0.00022465,2]
[361941325,1747902644839,-1893.39,0.00022465,2]
[361941326,1747902644849,-430.0,0.00022465,2]
[361941327,1747902644859,-1265.55,0.00022465,2]
[361941328,1747902644869,-758.65,0.00022465,2]
[361941329,1747902644878,-430.0,0.00022465,2]
[361941330,1747902644888,-430.0,0.00022465,2]
[361941331,1747902644898,-475.45,0.00022465,2]
[361941332,1747902644908,-430.0,0.00022465,2]
[361941333,1747902644917,-430.0,0.00022465,2]
[361941334,1747902644927,-430.0,0.00022465,2]
[361941335,1747902644937,-567.65,0.00022465,2]
[361941336,1747902644947,-595.54,0.00022465,2]
[361941337,1747902644957,-755.34,0.00022465,2]
[361941338,1747902644966,-430.0,0.00022465,2]
[361941339,1747902644976,-430.0,0.00022465,2]
[361941340,1747902644986,-200.0,0.00022465,2]
[361941341,1747902644995,-430.0,0.00022465,2]
[361941342,1747902645005,-430.0,0.00022465,2]
[361941343,1747902645015,-507.22,0.00022465,2]
[361941344,1747902645024,-1646.86,0.00022465,2]
[361941345,1747902645034,-160.0,0.00022469,2]
[361941346,1747902645043,-422.78357425,0.00022471,2]
[361941347,1747902645053,-160.0,0.00022471,2]
[361941348,1747902645063,-1316.39270049,0.00022521,7]
[361941349,1747902645073,-1316.39270049,0.00022624,7]
[361941350,1747902645083,-500.0,0.00022639,2]
[361941351,1747902645092,-1000.0,0.00022693,2]
[361941352,1747902645104,-1316.39270049,0.00022728,7]
[361941353,1747902645114,-4329.99864747,0.00022736,2]
[361941354,1747902645123,-500.0,0.00022736,2]
[361941355,1747902645133,-500.0,0.00022738,2]
[361941356,1747902645143,-430.0,0.00022739,2]
[361941357,1747902645152,-430.0,0.00022739,2]
[361941358,1747902645162,-430.0,0.00022739,2]
[361941359,1747902645171,-430.0,0.00022739,2]
[361941360,1747902645182,-430.0,0.00022739,2]
[361941361,1747902645192,-1084.93,0.00022739,2]
[361941362,1747902645201,-430.0,0.00022739,2]
[361941363,1747902645211,-430.0,0.00022739,2]
[361941364,1747902645221,-430.0,0.00022739,2]
[361941365,1747902645230,-430.0,0.00022739,2]
[361941366,1747902645240,-703.18,0.00022739,2]
[361941367,1747902645249,-430.0,0.00022739,2]
[361941368,1747902645260,-1030.83,0.00022739,2]
[361941369,1747902645270,-661.71,0.00022739,2]
[361941370,1747902645279,-430.0,0.00022739,2]
[361941371,1747902645289,-430.0,0.00022739,2]
[361941372,1747902645298,-430.0,0.00022739,2]
[361941373,1747902645308,-430.0,0.00022739,2]
[361941374,1747902645317,-430.0,0.00022739,2]
[361941375,1747902645327,-608.29,0.00022739,2]
[361941376,1747902645336,-430.0,0.00022739,2]
[361941377,1747902645346,-430.0,0.00022739,2]
[361941378,1747902645357,-430.0,0.00022739,2]
[361941379,1747902645367,-566.95,0.00022739,2]
[361941380,1747902645378,-430.0,0.00022739,2]
[361941381,1747902645390,-430.0,0.00022739,2]
[361941382,1747902645399,-430.0,0.00022739,2]
[361941383,1747902645409,-430.0,0.00022739,2]
[361941384,1747902645419,-430.0,0.00022739,2]
[361941385,1747902645428,-996.34,0.00022739,2]
[361941386,1747902645438,-430.0,0.00022739,2]
[361941387,1747902645447,-430.0,0.00022739,2]
[361941388,1747902645457,-430.0,0.00022739,2]
[361941389,1747902645467,-430.0,0.00022739,2]
[361941390,1747902645477,-430.0,0.00022739,2]
[361941391,1747902645486,-430.0,0.00022739,2]
[361941392,1747902645496,-1893.39,0.00022739,2]
[361941393,1747902645506,-430.0,0.00022739,2]
[361941394,1747902645515,-1265.55,0.00022739,2]
[361941395,1747902645525,-758.65,0.00022739,2]
[361941396,1747902645535,-475.45,0.00022739,2]
[361941397,1747902645544,-430.0,0.00022739,2]
[361941398,1747902645554,-430.0,0.00022739,2]
[361941399,1747902645564,-595.54,0.00022739,2]
[361941400,1747902645575,-755.34,0.00022739,2]
[361941401,1747902645584,-430.0,0.00022739,2]
[361941402,1747902645594,-430.0,0.00022739,2]
[361941403,1747902645606,-430.0,0.00022739,2]
[361941404,1747902645616,-507.22,0.00022739,2]
[361941405,1747902645626,-1646.86,0.00022739,2]
[361941406,1747902645636,-405.60831685,0.00022749,2]
[361941407,1747902645646,-1316.39270049,0.00022831,8]
[361941408,1747902645657,-1316.39270049,0.00022934,8]
[361941410,1747902645667,-3246.0,0.00023,2]
[361941412,1747902645679,-500.0,0.00023,30]
[361941414,1747902645689,-500.0,0.00023,30]
[361941416,1747902645699,-500.0,0.00023012,2]
[361941417,1747902645709,-430.0,0.00023013,2]
[361941418,1747902645719,-430.0,0.00023013,2]
[361941419,1747902645729,-430.0,0.00023013,2]
[361941420,1747902645739,-430.0,0.00023013,2]
[361941421,1747902645750,-1084.93,0.00023013,2]
[361941422,1747902645760,-430.0,0.00023013,2]
[361941423,1747902645770,-430.0,0.00023013,2]
[361941424,1747902645781,-430.0,0.00023013,2]
[361941425,1747902645791,-430.0,0.00023013,2]
[361941426,1747902645802,-703.18,0.00023013,2]
[361941427,1747902645812,-430.0,0.00023013,2]
[361941428,1747902645822,-1030.83,0.00023013,2]
[361941430,1747902645833,-661.71,0.00023013,2]
[361941432,1747902645843,-430.0,0.00023013,2]
[361941434,1747902645854,-430.0,0.00023013,2]
[361941435,1747902645864,-430.0,0.00023013,2]
[361941438,1747902645875,-430.0,0.00023013,2]
[361941440,1747902645886,-430.0,0.00023013,2]
[361941442,1747902645896,-608.29,0.00023013,2]
[361941444,1747902645907,-430.0,0.00023013,2]
[361941446,1747902645917,-430.0,0.00023013,2]
[361941448,1747902645929,-430.0,0.00023013,2]
[361941450,1747902645939,-566.95,0.00023013,2]
[361941453,1747902645949,-430.0,0.00023013,2]
[361941456,1747902645960,-430.0,0.00023013,2]
[361941459,1747902645970,-430.0,0.00023013,2]
[361941462,1747902645979,-430.0,0.00023013,2]
[361941465,1747902645990,-430.0,0.00023013,2]
[361941468,1747902645999,-996.34,0.00023013,2]
[361941471,1747902646009,-430.0,0.00023013,2]
[361941474,1747902646020,-430.0,0.00023013,2]
[361941500,1747902646198,-430.0,0.00023013,2]
[361941502,1747902646208,-430.0,0.00023013,2]
[361941504,1747902646218,-430.0,0.00023013,2]
[361941506,1747902646228,-430.0,0.00023013,2]
[361941508,1747902646237,-1893.39,0.00023013,2]
[361941510,1747902646247,-1265.55,0.00023013,2]
[361941512,1747902646257,-430.0,0.00023013,2]
[361941513,1747902646267,-758.65,0.00023013,2]
[361941514,1747902646276,-475.45,0.00023013,2]
[361941516,1747902646286,-430.0,0.00023013,2]
[361941517,1747902646296,-430.0,0.00023013,2]
[361941518,1747902646306,-595.54,0.00023013,2]
[361941519,1747902646317,-755.34,0.00023013,2]
[361941520,1747902646327,-430.0,0.00023013,2]
[361941521,1747902646337,-430.0,0.00023013,2]
[361941522,1747902646347,-430.0,0.00023013,2]
[361941523,1747902646359,-507.22,0.00023013,2]
[361941524,1747902646369,-1646.86,0.00023013,2]
[361941525,1747902646379,-1316.39270049,0.00023038,8]
[361941526,1747902646390,-405.60831685,0.00023133,2]
[361941527,1747902646400,-1316.39270049,0.00023141,8]
[361941528,1747902646411,-1500.0,0.00023241,2]
[361941529,1747902646420,-1316.39270049,0.00023245,8]
[361941530,1747902646430,-500.0,0.00023286,2]
[361941531,1747902646439,-477.21582913,0.00023286,2]
[361941532,1747902646449,-430.0,0.00023287,2]
[361941533,1747902646463,-430.0,0.00023287,2]
[361941534,1747902646481,-430.0,0.00023287,2]
[361941535,1747902646493,-243.56,0.00023287,2]
[361941536,1747902646504,-1269.28,0.00023287,2]
[361941537,1747902646514,-1084.93,0.00023287,2]
[361941538,1747902646525,-430.0,0.00023287,2]
[361941539,1747902646535,-430.0,0.00023287,2]
[361941540,1747902646545,-430.0,0.00023287,2]
[361941541,1747902646557,-430.0,0.00023287,2]
[361941542,1747902646567,-703.18,0.00023287,2]
[361941543,1747902646577,-430.0,0.00023287,2]
[361941544,1747902646587,-1030.83,0.00023287,2]
[361941545,1747902646600,-661.71,0.00023287,2]
[361941546,1747902646609,-430.0,0.00023287,2]
[361941547,1747902646619,-430.0,0.00023287,2]
[361941548,1747902646630,-430.0,0.00023287,2]
[361941549,1747902646640,-430.0,0.00023287,2]
[361941550,1747902646650,-430.0,0.00023287,2]
[361941551,1747902646660,-608.29,0.00023287,2]
[361941552,1747902646670,-430.0,0.00023287,2]
[361941553,1747902646680,-430.0,0.00023287,2]
[361941554,1747902646689,-430.0,0.00023287,2]
[361941555,1747902646699,-566.95,0.00023287,2]
[361941556,1747902646710,-270.0,0.00023287,2]
[361941557,1747902646722,-430.0,0.00023287,2]
[361941558,1747902646731,-430.0,0.00023287,2]
[361941559,1747902646742,-430.0,0.00023287,2]
[361941560,1747902646752,-996.34,0.00023287,2]
[361941561,1747902646763,-430.0,0.00023287,2]
[361941562,1747902646774,-430.0,0.00023287,2]
[361941563,1747902646784,-259.29,0.00023287,2]
[361941564,1747902646794,-430.0,0.00023287,2]
[361941565,1747902646804,-430.0,0.00023287,2]
[361941566,1747902646814,-430.0,0.00023287,2]
[361941567,1747902646824,-1893.39,0.00023287,2]
[361941568,1747902646834,-1265.55,0.00023287,2]
[361941569,1747902646844,-430.0,0.00023287,2]
[361941570,1747902646858,-758.65,0.00023287,2]
[361941571,1747902646867,-475.45,0.00023287,2]
[361941572,1747902646877,-430.0,0.00023287,2]
[361941573,1747902646887,-430.0,0.00023287,2]
[361941574,1747902646896,-595.54,0.00023287,2]
[361941575,1747902646907,-755.34,0.00023287,2]
[361941576,1747902646916,-430.0,0.00023287,2]
[361941577,1747902646926,-430.0,0.00023287,2]
[361941578,1747902646935,-430.0,0.00023287,2]
[361941579,1747902646945,-507.22,0.00023287,2]
[361941580,1747902646955,-1646.86,0.00023287,2]
[361941581,1747902646965,-1316.39270049,0.00023348,9]
[361941582,1747902646975,-459.72865298,0.00023363,2]
[361941583,1747902646985,-1316.39270049,0.00023452,9]
[361941584,1747902646995,-1463.682344,0.0002351,2]
[361941585,1747902647004,-405.60831685,0.00023516,2]
[361941586,1747902647014,-1316.39270049,0.00023555,9]
[361941587,1747902647024,-430.0,0.00023561,2]
[361941588,1747902647033,-430.0,0.00023561,2]
[361941589,1747902647043,-430.0,0.00023561,2]
[361941590,1747902647052,-1084.93,0.00023561,2]
[361941591,1747902647062,-430.0,0.00023561,2]
[361941592,1747902647071,-430.0,0.00023561,2]
[361941593,1747902647080,-430.0,0.00023561,2]
[361941594,1747902647090,-430.0,0.00023561,2]
[361941595,1747902647100,-703.18,0.00023561,2]
[361941596,1747902647110,-430.0,0.00023561,2]
[361941597,1747902647119,-1030.83,0.00023561,2]
[361941598,1747902647129,-661.71,0.00023561,2]
[361941599,1747902647143,-430.0,0.00023561,2]
[361941600,1747902647152,-197.77,0.00023561,2]
[361941601,1747902647162,-430.0,0.00023561,2]
[361941602,1747902647171,-430.0,0.00023561,2]
[361941603,1747902647181,-430.0,0.00023561,2]
[361941604,1747902647190,-608.29,0.00023561,2]
[361941605,1747902647200,-430.0,0.00023561,2]
[361941606,1747902647209,-430.0,0.00023561,2]
[361941607,1747902647218,-430.0,0.00023561,2]
[361941609,1747902647227,-566.95,0.00023561,2]
[361941611,1747902647237,-430.0,0.00023561,2]
[361941613,1747902647247,-430.0,0.00023561,2]
[361941614,1747902647256,-430.0,0.00023561,2]
[361941615,1747902647265,-996.34,0.00023561,2]
[361941616,1747902647275,-430.0,0.00023561,2]
[361941618,1747902647284,-430.0,0.00023561,2]
[361941620,1747902647294,-430.0,0.00023561,2]
[361941622,1747902647303,-430.0,0.00023561,2]
[361941624,1747902647312,-520.97,0.00023561,2]
[361941626,1747902647322,-1893.39,0.00023561,2]
[361941628,1747902647331,-1265.55,0.00023561,2]
[361941630,1747902647340,-430.0,0.00023561,2]
[361941632,1747902647350,-758.65,0.00023561,2]
[361941633,1747902647360,-475.45,0.00023561,2]
[361941636,1747902647370,-430.0,0.00023561,2]
[361941637,1747902647379,-430.0,0.00023561,2]
[361941640,1747902647394,-595.54,0.00023561,2]
[361941642,1747902647404,-755.34,0.00023561,2]
[361941643,1747902647415,-430.0,0.00023561,2]
[361941646,1747902647425,-430.0,0.00023561,2]
[361941647,1747902647434,-430.0,0.00023561,2]
[361941648,1747902647444,-507.22,0.00023561,2]
[361941649,1747902647454,-1646.86,0.00023561,2]
[361941650,1747902647464,-1316.39270049,0.00023659,9]
[361941651,1747902647473,-25000.0,0.0002366,2]
[361941652,1747902647483,-151.0,0.00023676,2]
[361941653,1747902647492,-215.0738,0.00023676,2]
[361941654,1747902647502,-459.72865298,0.0002368,2]
[361941655,1747902647511,-500.0,0.00023789,2]
[361941656,1747902647520,-12889.94987735,0.000238,4]
[361941657,1747902647530,-420.0,0.00023811,2]
[361941658,1747902647539,-1096.437,0.00023811,2]
[361941659,1747902647549,-420.0,0.00023812,2]
[361941660,1747902647561,-420.0,0.00023812,2]
[361941661,1747902647570,-430.0,0.00023835,2]
[361941662,1747902647580,-430.0,0.00023835,2]
[361941663,1747902647590,-430.0,0.00023835,2]
[361941664,1747902647600,-1084.93,0.00023835,2]
[361941665,1747902647610,-430.0,0.00023835,2]
[361941666,1747902647619,-430.0,0.00023835,2]
[361941667,1747902647629,-385.02,0.00023835,2]
[361941668,1747902647638,-430.0,0.00023835,2]
[361941669,1747902647647,-703.18,0.00023835,2]
[361941670,1747902647657,-430.0,0.00023835,2]
[361941671,1747902647666,-1030.83,0.00023835,2]
[361941672,1747902647676,-661.71,0.00023835,2]
[361941673,1747902647686,-411.56,0.00023835,2]
[361941674,1747902647695,-430.0,0.00023835,2]
[361941675,1747902647705,-430.0,0.00023835,2]
[361941676,1747902647714,-430.0,0.00023835,2]
[361941677,1747902647724,-608.29,0.00023835,2]
[361941678,1747902647733,-430.0,0.00023835,2]
[361941679,1747902647743,-430.0,0.00023835,2]
[361941680,1747902647753,-320.26332814,0.00023835,2]
[361941681,1747902647762,-566.95,0.00023835,2]
[361941682,1747902647772,-430.0,0.00023835,2]
[361941683,1747902647783,-430.0,0.00023835,2]
[361941684,1747902647793,-430.0,0.00023835,2]
[361941685,1747902647802,-996.34,0.00023835,2]
[361941686,1747902647812,-430.0,0.00023835,2]
[361941687,1747902647823,-430.0,0.00023835,2]
[361941688,1747902647834,-430.0,0.00023835,2]
[361941689,1747902647844,-382.54,0.00023835,2]
[361941690,1747902647860,-1893.39,0.00023835,2]
[361941691,1747902647870,-430.0,0.00023835,2]
[361941692,1747902647881,-1265.55,0.00023835,2]
[361941693,1747902647892,-758.65,0.00023835,2]
[361941694,1747902647901,-475.45,0.00023835,2]
[361941695,1747902647911,-430.0,0.00023835,2]
[361941696,1747902647921,-430.0,0.00023835,2]
[361941697,1747902647931,-595.54,0.00023835,2]
[361941698,1747902647942,-755.34,0.00023835,2]
[361941699,1747902647952,-430.0,0.00023835,2]
[361941700,1747902647962,-430.0,0.00023835,2]
[361941701,1747902647972,-430.0,0.00023835,2]
[361941702,1747902647982,-507.22,0.00023835,2]
[361941703,1747902647992,-1646.86,0.00023835,2]
[361941704,1747902648002,-150.0,0.000239,2]
[361941705,1747902648011,-5717.16001413,0.000239,2]
[361941706,1747902648021,-405.60831685,0.000239,2]
[361941707,1747902648031,-150.0,0.000239,2]
[361941708,1747902648040,-1680.0,0.0002391,2]
[361941709,1747902648050,-600.0,0.00023973,2]
[361941710,1747902648059,-155.313,0.00023989,2]
[361941711,1747902648069,-31688.70848143,0.0002399,2]
[361941712,1747902648079,-6951.35447601,0.0002399,3]
[361941713,1747902648089,-376460.18101734,0.0002399,7]
[361941714,1747902648308,-1316.39270049,0.00023762,9]
[361941715,1747902648318,-540.44922407,0.00023866,10]
[361941716,1747902648330,-775.94347642,0.00023866,10]
[361941717,1747902648340,-1316.39270049,0.00023969,10]
[361941718,1747902648352,-13713.8623703,0.0002399,7]
[361941719,1747902648446,-430.0,0.00021917,2]
[361941720,1747902648456,-430.0,0.00021917,2]
[361941721,1747902648467,-251.32272123,0.00022191,2]
[361941722,1747902648805,-430.0,0.00021917,2]
[361941723,1747902648815,-203.86889505,0.00022191,2]
[361941724,1747902648826,-2855.6555811,0.0002399,7]
[361941725,1747902749764,167.0,0.00018685,3]
[361941730,1747903035496,5000.0,0.0002,2]
[361941731,1747903050917,154.538006,5.5e-07,2]
[361941732,1747903051040,154.538006,5.5e-07,2]
[361941733,1747903051164,154.538006,5.5e-07,2]
[361941734,1747903051294,5000.0,0.0002,2]
[361941735,1747903051324,154.538006,5.5e-07,2]
[361941736,1747903051443,154.538006,5.5e-07,2]
[361941737,1747903051997,154.538006,5.5e-07,2]
[361941738,1747903067608,5000.0,0.0002,2]
[361941739,1747903083675,5000.0,0.0002,2]
[361941740,1747903085326,167.022607,0.00013699,2]
[361941741,1747903100173,5000.0,0.0002,2]
[361941742,1747903116222,5000.0,0.0002,2]
[361941743,1747903133946,5000.0,0.0002,2]
[361941744,1747903150336,5000.0,0.0002,2]
[361941745,1747903167024,5000.0,0.0002,2]
[361941746,1747903183245,5000.0,0.0002,2]
[361941747,1747903199975,5000.0,0.0002,2]
[361941748,1747903216274,5000.0,0.0002,2]
[361941749,1747903219156,860.43065449,0.00019853,2]
[361941750,1747903232616,5000.0,0.0002,2]
[361941751,1747903248410,5000.0,0.0002,2]
[361941752,1747903264175,5000.0,0.0002,2]
[361941753,1747903283076,5000.0,0.0002,2]
[361941754,1747903300190,5000.0,0.0002,2]
[361941755,1747903313679,434.3205,0.0002,120]
[361941756,1747903316500,5000.0,0.0002,2]
[361941757,1747903321364,434.3205,0.0002,14]
[361941758,1747903332828,5000.0,0.0002,2]
[361941759,1747903335577,434.3205,0.0002,5]
[361941760,1747903342129,434.3205,0.0002,5]
[361941761,1747903348614,434.32075,0.0002,5]
[361941762,1747903349004,5000.0,0.0002,2]
[361941763,1747903355541,434.32075,0.0002,5]
[361941764,1747903364777,5000.0,0.0002,2]
[361941765,1747903380606,196.0,0.0002,7]
[361941766,1747903380761,5000.0,0.0002,2]
[361941767,1747903390553,196.0,0.0002,5]
[361941768,1747903397309,3305.13004233,0.0002,2]
[361941769,1747903411878,3725.4062216,0.0001998,2]
[361941771,1747903424085,10000.0,0.0001998,2]
[361941772,1747903428363,195.88439402,0.0002,6]
[361941774,1747903501992,5000.0,0.0002,2]
[361941788,1747903591998,202.1103701,0.000189,2]
[361941793,1747903607341,5000.0,0.0002,2]
[361941798,1747903643206,-171.220195,0.00020093,2]
[361941799,1747903643228,-253.602677,0.00020112,2]
[361941800,1747903643250,-167.022607,0.00020187,2]
[361941801,1747903643271,-2767.3049082,0.00020467,2]
[361941802,1747903643292,-300.0,0.00020998,2]
[361941803,1747903643313,-300.0,0.00020998,2]
[361941804,1747903643335,-300.0,0.00020999,2]
[361941805,1747903643356,-300.0,0.00020999,2]
[361941806,1747903643377,-1200.0,0.00020999,2]
[361941807,1747903643398,-300.0,0.00020999,2]
[361941808,1747903643419,-300.0,0.00020999,2]
[361941809,1747903643444,-829.4556382,0.00021,2]
[361941810,1747903652166,-274.77219455,0.00021,2]